fUST/lending_fUST_20250727
["ID","MTS","AMOUNT","RATE_DAILY","PERIOD"]
[375159795,1753558245324,-460.0,0.00021814,2]
[375159796,1753558245334,-460.0,0.00021814,2]
[375159797,1753558245344,-460.0,0.00021814,2]
[375159798,1753558245354,-460.0,0.00021814,2]
[375159799,1753558245364,-460.0,0.00021814,2]
[375159800,1753558245374,-460.0,0.00021814,2]
[375159801,1753558245386,-460.0,0.00021814,2]
[375159802,1753558245403,-1586.95,0.00021814,2]
[375159803,1753558245412,-605.95,0.00021814,2]
[375159804,1753558245422,-676.8,0.00021815,2]
[375159805,1753558245432,-460.0,0.00021815,2]
[375159806,1753558245442,-5033.69654659,0.00021815,2]
[375159807,1753558245452,-403.23622689,0.000219,2]
[375159808,1753558245462,-460.0,0.00021903,2]
[375159809,1753558245473,-510.76,0.00021903,2]
[375159810,1753558245482,-460.0,0.00021903,2]
[375159811,1753558245492,-823.98,0.00021905,3]
[375159812,1753558245509,-411.98,0.00021905,3]
[375159813,1753558245519,-1647.96,0.00021906,3]
[375159814,1753558245529,-460.0,0.00021913,2]
[375159815,1753558245538,-2370.34,0.00021913,2]
[375159816,1753558245548,-1234.43,0.00021915,2]
[375159817,1753558245558,-460.0,0.00021915,2]
[375159818,1753558245567,-460.0,0.00021916,2]
[375159819,1753558245577,-864.47,0.00021916,2]
[375159820,1753558245587,-712.3,0.00021916,2]
[375159821,1753558245597,-420.0,0.00021957,2]
[375159822,1753558245607,-500.0,0.00021973,2]
[375159823,1753558245616,-500.0,0.00021973,2]
[375159824,1753558245626,-200.0,0.00021986,2]
[375159825,1753558245635,-539.97,0.00022,7]
[375159826,1753558245648,-11523.48946425,0.00022,2]
[375159827,1753558245659,-166.97628453,0.00022,10]
[375159828,1753558245670,-11997.85206322,0.00022,5]
[375159829,1753558245680,-241.48,0.00022,2]
[375159830,1753558245692,-160.0,0.00022,2]
[375159831,1753558245702,-157.0,0.00022,2]
[375159832,1753558245712,-164.505337,0.00022014,8]
[375159833,1753558245723,-624.46895045,0.00022025,8]
[375159834,1753558245733,-500.0,0.00022027,2]
[375159835,1753558245744,-500.0,0.00022027,2]
[375159836,1753558245753,-500.0,0.00022031,2]
[375159837,1753558245765,-182.42071431,0.00022031,2]
[375159838,1753558245775,-1200.0,0.00022062,2]
[375159839,1753558245785,-460.0,0.00022086,2]
[375159840,1753558245795,-460.0,0.00022086,2]
[375159841,1753558245805,-1430.83,0.00022086,2]
[375159842,1753558245815,-2427.82,0.00022086,2]
[375159843,1753558245826,-986.59,0.00022087,2]
[375159844,1753558245837,-934.6,0.00022087,2]
[375159845,1753558245848,-460.0,0.00022087,2]
[375159846,1753558245858,-565.45,0.00022088,2]
[375159847,1753558245868,-460.0,0.00022088,2]
[375159848,1753558245878,-460.0,0.00022088,2]
[375159849,1753558245889,-1609.99,0.00022088,2]
[375159850,1753558245899,-460.0,0.00022088,2]
[375159851,1753558245908,-460.0,0.00022088,2]
[375159852,1753558245918,-460.0,0.00022088,2]
[375159853,1753558245928,-2227.49,0.00022088,2]
[375159854,1753558245937,-1044.8,0.00022088,2]
[375159855,1753558245947,-460.0,0.00022088,2]
[375159856,1753558245956,-460.0,0.00022088,2]
[375159857,1753558245966,-569.8151968,0.00022088,2]
[375159858,1753558245975,-460.0,0.00022088,2]
[375159859,1753558245984,-460.0,0.00022088,2]
[375159860,1753558245994,-460.0,0.00022088,2]
[375159861,1753558246005,-460.0,0.00022088,2]
[375159862,1753558246014,-460.0,0.00022088,2]
[375159863,1753558246024,-460.0,0.00022088,2]
[375159864,1753558246034,-460.0,0.00022088,2]
[375159865,1753558246044,-1586.95,0.00022088,2]
[375159866,1753558246054,-605.95,0.00022088,2]
[375159867,1753558246064,-676.8,0.00022089,2]
[375159868,1753558246074,-460.0,0.00022089,2]
[375159869,1753558246084,-3609.07108579,0.00022169,2]
[375159870,1753558246094,-460.0,0.00022177,2]
[375159871,1753558246103,-460.0,0.00022177,2]
[375159872,1753558246114,-460.0,0.00022187,2]
[375159873,1753558246123,-2370.34,0.00022187,2]
[375159874,1753558246133,-1234.43,0.00022189,2]
[375159875,1753558246143,-460.0,0.00022189,2]
[375159876,1753558246153,-460.0,0.0002219,2]
[375159877,1753558246163,-864.47,0.0002219,2]
[375159878,1753558246172,-712.3,0.0002219,2]
[375159879,1753558246182,-157.0,0.00022192,7]
[375159880,1753558246191,-460.0,0.0002236,2]
[375159881,1753558246200,-460.0,0.0002236,2]
[375159882,1753558246210,-1430.83,0.0002236,2]
[375159883,1753558246220,-2427.82,0.0002236,2]
[375159884,1753558246230,-986.59,0.00022361,2]
[375159885,1753558246240,-934.6,0.00022361,2]
[375159886,1753558246250,-460.0,0.00022361,2]
[375159887,1753558246259,-460.0,0.00022362,2]
[375159888,1753558246269,-460.0,0.00022362,2]
[375159889,1753558246278,-1609.99,0.00022362,2]
[375159890,1753558246287,-460.0,0.00022362,2]
[375159891,1753558246298,-460.0,0.00022362,2]
[375159892,1753558246307,-460.0,0.00022362,2]
[375159893,1753558246317,-2227.49,0.00022362,2]
[375159894,1753558246327,-1044.8,0.00022362,2]
[375159895,1753558246337,-460.0,0.00022362,2]
[375159896,1753558246346,-460.0,0.00022362,2]
[375159897,1753558246356,-460.0,0.00022362,2]
[375159898,1753558246365,-460.0,0.00022362,2]
[375159899,1753558246375,-460.0,0.00022362,2]
[375159900,1753558246385,-460.0,0.00022362,2]
[375159901,1753558246394,-502.48,0.00022362,2]
[375159902,1753558246404,-1586.95,0.00022362,2]
[375159903,1753558246415,-605.95,0.00022362,2]
[375159904,1753558246424,-676.8,0.00022363,2]
[375159905,1753558246434,-460.0,0.00022363,2]
[375159906,1753558246444,-189.865318,0.000224,2]
[375159907,1753558246453,-1000.0,0.000224,2]
[375159908,1753558246463,-460.0,0.00022451,2]
[375159909,1753558246472,-460.0,0.00022451,2]
[375159910,1753558246482,-204.64,0.00022461,2]
[375159911,1753558246492,-2370.34,0.00022461,2]
[375159912,1753558246501,-1234.43,0.00022463,2]
[375159913,1753558246512,-460.0,0.00022463,2]
[375159914,1753558246521,-460.0,0.00022464,2]
[375159916,1753558246530,-864.47,0.00022464,2]
[375159918,1753558246539,-712.3,0.00022464,2]
[375159920,1753558246548,-172.0,0.00022464,3]
[375159921,1753558246558,-172.0,0.00022464,3]
[375159922,1753558246567,-172.0,0.00022464,3]
[375159923,1753558246576,-1695.45,0.00022465,2]
[375159924,1753558246585,-30392.97337881,0.0002249,7]
[375159925,1753558246595,-214.8008262,0.0002249,7]
[375159926,1753558246604,-193.24378696,0.000225,2]
[375159927,1753558246619,-48.23621304,0.000225,2]
[375159928,1753558246628,-727.71347116,0.00022521,2]
[375159929,1753558246639,-272.28652884,0.00022521,2]
[375159930,1753558246652,-1000.0,0.00022521,2]
[375159931,1753558246662,-504.305,0.00022536,2]
[375159932,1753558246671,-407.0,0.00022536,2]
[375159933,1753558246681,-648.0,0.00022536,2]
[375159934,1753558246691,-260.0,0.00022548,2]
[375159935,1753558246701,-732.45878696,0.00022575,2]
[375159936,1753558246770,2295.38133893,0.000201,2]
[375159937,1753558246794,2704.61866107,0.000201,2]
[375159938,1753558246831,460.0,0.00019622,2]
[375159939,1753558246868,460.0,0.00019896,2]
[375159940,1753558246925,460.0,0.00019622,2]
[375159941,1753558247137,-460.0,0.00020259,2]
[375159942,1753558247146,-267.54121304,0.00022575,2]
[375159943,1753558247156,-1010.46393675,0.00022575,2]
[375159944,1753558247165,-1016.86457404,0.00022579,2]
[375159945,1753558247174,-403.23622689,0.000226,2]
[375159946,1753558247184,-247.36,0.00022634,2]
[375159947,1753558247193,-460.0,0.00022634,2]
[375159948,1753558247203,-1430.83,0.00022634,2]
[375159949,1753558247214,-2427.82,0.00022634,2]
[375159950,1753558247223,-986.59,0.00022635,2]
[375159951,1753558247234,-934.6,0.00022635,2]
[375159952,1753558247243,-460.0,0.00022635,2]
[375159953,1753558247253,-460.0,0.00022636,2]
[375159954,1753558247265,-547.48337341,0.00022636,2]
[375159955,1753558247274,-1609.99,0.00022636,2]
[375159956,1753558247284,-460.0,0.00022636,2]
[375159957,1753558247294,-456.67,0.00022636,2]
[375159958,1753558247304,-460.0,0.00022636,2]
[375159959,1753558247313,-2227.49,0.00022636,2]
[375159960,1753558247323,-1044.8,0.00022636,2]
[375159961,1753558247332,-460.0,0.00022636,2]
[375159962,1753558247341,-460.0,0.00022636,2]
[375159963,1753558247351,-460.0,0.00022636,2]
[375159964,1753558247360,-460.0,0.00022636,2]
[375159965,1753558247370,-460.0,0.00022636,2]
[375159966,1753558247380,-460.0,0.00022636,2]
[375159967,1753558247390,-1586.95,0.00022636,2]
[375159968,1753558247399,-605.95,0.00022636,2]
[375159969,1753558247409,-676.8,0.00022637,2]
[375159970,1753558247421,-460.0,0.00022637,2]
[375159971,1753558247430,-400.0,0.00022671,2]
[375159972,1753558247439,-460.0,0.00022725,2]
[375159973,1753558247448,-460.0,0.00022725,2]
[375159974,1753558247458,-2370.34,0.00022735,2]
[375159975,1753558247467,-1234.43,0.00022737,2]
[375159976,1753558247476,-460.0,0.00022737,2]
[375159977,1753558247486,-460.0,0.00022738,2]
[375159978,1753558247495,-864.47,0.00022738,2]
[375159979,1753558247504,-712.3,0.00022738,2]
[375159980,1753558247514,-760.52,0.0002287,3]
[375159981,1753558247523,-524.99,0.00022871,3]
[375159982,1753558247532,-64203.51873089,0.000229,7]
[375159983,1753558247542,-1757.42,0.000229,7]
[375159984,1753558247551,-3369.67,0.000229,7]
[375159985,1753558247560,-151.0,0.000229,7]
[375159986,1753558247569,-152.885245,0.000229,7]
[375159987,1753558247579,-151.0,0.000229,7]
[375159988,1753558247588,-151.0,0.000229,7]
[375159989,1753558247597,-183.586108,0.000229,7]
[375159990,1753558247607,-511.74,0.00022901,4]
[375159991,1753558247616,-241.48,0.00022906,2]
[375159992,1753558247626,-460.0,0.00022908,2]
[375159993,1753558247635,-1430.83,0.00022908,2]
[375159994,1753558247645,-2427.82,0.00022908,2]
[375159995,1753558247657,-986.59,0.00022909,2]
[375159996,1753558247667,-934.6,0.00022909,2]
[375159997,1753558247676,-460.0,0.00022909,2]
[375159998,1753558247686,-460.0,0.0002291,2]
[375159999,1753558247695,-1609.99,0.0002291,2]
[375160000,1753558247705,-460.0,0.0002291,2]
[375160001,1753558247714,-460.0,0.0002291,2]
[375160002,1753558247726,-2227.49,0.0002291,2]
[375160003,1753558247736,-1044.8,0.0002291,2]
[375160004,1753558247746,-460.0,0.0002291,2]
[375160005,1753558247755,-460.0,0.0002291,2]
[375160006,1753558247765,-460.0,0.0002291,2]
[375160007,1753558247774,-430.81,0.0002291,2]
[375160008,1753558247783,-460.0,0.0002291,2]
[375160009,1753558247792,-460.0,0.0002291,2]
[375160010,1753558247801,-1586.95,0.0002291,2]
[375160011,1753558247811,-605.95,0.0002291,2]
[375160012,1753558247905,-676.8,0.00022911,2]
[375160013,1753558247915,-460.0,0.00022911,2]
[375160014,1753558247924,-268182.84533148,0.00022929,2]
[375160015,1753558247933,-238.053942,0.00022929,7]
[375160016,1753558247943,-151.0,0.00022929,7]
[375160017,1753558247952,-216.761087,0.00022929,7]
[375160018,1753558247962,-216.761087,0.00022929,7]
[375160019,1753558247974,-524.99,0.00022971,4]
[375160020,1753558247985,-500.0,0.00022973,2]
[375160021,1753558247997,-500.0,0.00022973,2]
[375160022,1753558248007,-500.0,0.00022973,2]
[375160023,1753558248017,-500.0,0.00022973,2]
[375160024,1753558248026,-150.0,0.00022973,2]
[375160025,1753558248036,-999.999999,0.0002298,2]
[375160026,1753558248045,-168.0,0.00022985,2]
[375160027,1753558248056,-460.0,0.00022999,2]
[375160028,1753558248066,-396.32042496,0.00022999,2]
[375160029,1753558248075,-951.97,0.00023,2]
[375160030,1753558248085,-1966.59967996,0.00023,2]
[375160031,1753558248094,-9810.06450645,0.00023,2]
[375160032,1753558248104,-346.77504824,0.00023,2]
[375160033,1753558248114,-53043.18856071,0.00023,2]
[375160034,1753558248123,-1337.1062777,0.00023,2]
[375160035,1753558248133,-160.0,0.00023,2]
[375160036,1753558248142,-151.0,0.00023,7]
[375160037,1753558248152,-216.761087,0.00023,7]
[375160038,1753558248161,-216.761087,0.00023,7]
[375160039,1753558248171,-24427.15,0.00023,2]
[375160040,1753558248181,-511.74,0.00023001,7]
[375160041,1753558248191,-2370.34,0.00023009,2]
[375160042,1753558248200,-1234.43,0.00023011,2]
[375160043,1753558248210,-460.0,0.00023011,2]
[375160044,1753558248219,-460.0,0.00023012,2]
[375160045,1753558248229,-864.47,0.00023012,2]
[375160046,1753558248238,-712.3,0.00023012,2]
[375160047,1753558248248,-157.0,0.00023014,7]
[375160048,1753558248258,-4235.0,0.00023038,2]
[375160049,1753558248267,-1500.0,0.00023068,2]
[375160050,1753558248277,-1500.0,0.00023068,2]
[375160051,1753558248287,-524.99,0.00023071,2]
[375160052,1753558248296,-360.0,0.00023096,2]
[375160053,1753558248306,-511.74,0.00023101,4]
[375160054,1753558248316,-1500.0,0.00023123,2]
[375160055,1753558248325,-168.0,0.00023141,2]
[375160056,1753558248336,-4235.0,0.0002317,2]
[375160057,1753558248346,-460.0,0.00023182,2]
[375160058,1753558248356,-1430.83,0.00023182,2]
[375160059,1753558248367,-2427.82,0.00023182,2]
[375160060,1753558248377,-986.59,0.00023183,2]
[375160061,1753558248387,-934.6,0.00023183,2]
[375160062,1753558248398,-460.0,0.00023183,2]
[375160063,1753558248407,-460.0,0.00023184,2]
[375160064,1753558248418,-1609.99,0.00023184,2]
[375160065,1753558248427,-460.0,0.00023184,2]
[375160066,1753558248437,-509.63952869,0.00023184,2]
[375160067,1753558248447,-2227.49,0.00023184,2]
[375160068,1753558248456,-1044.8,0.00023184,2]
[375160069,1753558248466,-460.0,0.00023184,2]
[375160070,1753558248475,-460.0,0.00023184,2]
[375160071,1753558248484,-460.0,0.00023184,2]
[375160072,1753558248494,-343.75,0.00023184,2]
[375160073,1753558248504,-460.0,0.00023184,2]
[375160074,1753558248513,-1586.95,0.00023184,2]
[375160075,1753558248524,-605.95,0.00023184,2]
[375160076,1753558248533,-676.8,0.00023185,2]
[375160077,1753558248542,-218.78,0.00023185,2]
[375160078,1753558248551,-511.74,0.00023201,3]
[375160079,1753558248562,-474.0,0.00023273,2]
[375160080,1753558248571,-2370.34,0.00023283,2]
[375160081,1753558248581,-1234.43,0.00023285,2]
[375160082,1753558248590,-460.0,0.00023285,2]
[375160083,1753558248600,-606.65,0.00023286,2]
[375160084,1753558248609,-864.47,0.00023286,2]
[375160085,1753558248619,-712.3,0.00023286,2]
[375160086,1753558248628,-403.23622689,0.000233,2]
[375160087,1753558248638,-511.74,0.00023301,7]
[375160088,1753558248648,-5033.69654659,0.00023309,2]
[375160089,1753558248660,-331.39,0.00023309,2]
[375160090,1753558248669,-201.62407296,0.00023356,2]
[375160091,1753558248679,-2059.22,0.00023356,2]
[375160092,1753558248689,-241.48,0.00023359,2]
[375160093,1753558248699,-160.0126474,0.0002337,2]
[375160094,1753558248709,-356.6695192,0.0002337,2]
[375160095,1753558248718,-577.8715194,0.0002337,2]
[375160096,1753558248727,-160.0126474,0.0002337,2]
[375160097,1753558248737,-577.8715194,0.0002337,2]
[375160098,1753558248746,-577.8715194,0.0002337,2]
[375160099,1753558248756,-160.0126474,0.0002337,2]
[375160100,1753558248766,-160.0126474,0.0002337,2]
[375160101,1753558248776,-577.8715194,0.0002337,2]
[375160102,1753558248786,-160.0126474,0.0002337,2]
[375160103,1753558248795,-575.2595576,0.0002337,2]
[375160104,1753558248804,-160.0126474,0.0002337,2]
[375160105,1753558248814,-151.0,0.000234,7]
[375160106,1753558248824,-1126.60340077,0.000234,2]
[375160107,1753558248833,-643.0,0.000234,2]
[375160108,1753558248843,-511.74,0.00023401,5]
[375160109,1753558248853,-4235.0,0.00023436,2]
[375160110,1753558248862,-158.88,0.00023456,2]
[375160111,1753558248871,-1430.83,0.00023456,2]
[375160112,1753558248881,-2427.82,0.00023456,2]
[375160113,1753558248890,-986.59,0.00023457,2]
[375160114,1753558248900,-934.6,0.00023457,2]
[375160115,1753558248909,-460.0,0.00023457,2]
[375160116,1753558248919,-460.0,0.00023458,2]
[375160117,1753558248929,-1609.99,0.00023458,2]
[375160118,1753558248938,-460.0,0.00023458,2]
[375160119,1753558248948,-2227.49,0.00023458,2]
[375160120,1753558248957,-1044.8,0.00023458,2]
[375160121,1753558248967,-368.93,0.00023458,2]
[375160122,1753558248976,-460.0,0.00023458,2]
[375160123,1753558248986,-460.0,0.00023458,2]
[375160124,1753558248995,-460.0,0.00023458,2]
[375160125,1753558249005,-1586.95,0.00023458,2]
[375160126,1753558249014,-605.95,0.00023458,2]
[375160127,1753558249024,-676.8,0.00023459,2]
[375160128,1753558249035,-511.74,0.00023501,3]
[375160129,1753558249045,-164.81180196,0.00023507,2]
[375160130,1753558249054,-1000.0,0.00023521,2]
[375160131,1753558249064,-1000.0,0.00023521,2]
[375160132,1753558249073,-1000.0,0.00023521,2]
[375160133,1753558249083,-250.0,0.00023521,2]
[375160134,1753558249092,-168.0,0.00023548,2]
[375160135,1753558249102,-2370.34,0.00023557,2]
[375160136,1753558249111,-1234.43,0.00023559,2]
[375160137,1753558249120,-460.0,0.00023559,2]
[375160138,1753558249130,-864.47,0.0002356,2]
[375160139,1753558249140,-712.3,0.0002356,2]
[375160140,1753558249149,-168.0,0.00023577,2]
[375160141,1753558249158,-168.0,0.00023578,2]
[375160142,1753558249168,-511.74,0.00023601,6]
[375160143,1753558249178,-1542.18048329,0.00023616,2]
[375160144,1753558249187,-510.63255838,0.00023616,2]
[375160145,1753558249197,-460.0,0.00023644,2]
[375160146,1753558249207,-448.23437366,0.00023671,2]
[375160147,1753558249216,-539.97,0.000237,7]
[375160148,1753558249226,-511.74,0.00023701,7]
[375160149,1753558249237,-1430.83,0.0002373,2]
[375160150,1753558249246,-2427.82,0.0002373,2]
[375160151,1753558249257,-986.59,0.00023731,2]
[375160152,1753558249266,-934.6,0.00023731,2]
[375160153,1753558249276,-460.0,0.00023731,2]
[375160154,1753558249285,-460.0,0.00023732,2]
[375160155,1753558249295,-1609.99,0.00023732,2]
[375160156,1753558249305,-460.0,0.00023732,2]
[375160157,1753558249314,-2227.49,0.00023732,2]
[375160158,1753558249324,-1044.8,0.00023732,2]
[375160159,1753558249334,-460.0,0.00023732,2]
[375160160,1753558249343,-460.0,0.00023732,2]
[375160161,1753558249353,-460.0,0.00023732,2]
[375160162,1753558249363,-1586.95,0.00023732,2]
[375160163,1753558249372,-605.95,0.00023732,2]
[375160164,1753558249382,-676.8,0.00023733,2]
[375160165,1753558249391,-164.81180196,0.00023781,2]
[375160166,1753558249402,-168.0,0.00023784,2]
[375160167,1753558249412,-168.0,0.00023798,2]
[375160168,1753558249421,-151.0,0.00023801,7]
[375160169,1753558249430,-216.761087,0.00023801,7]
[375160170,1753558249439,-216.761087,0.00023801,7]
[375160171,1753558249449,-511.8,0.00023801,3]
[375160172,1753558249458,-241.48,0.00023812,2]
[375160173,1753558249468,-2370.34,0.00023831,2]
[375160174,1753558249477,-1234.43,0.00023833,2]
[375160175,1753558249487,-204.2,0.00023833,2]
[375160176,1753558249496,-864.47,0.00023834,2]
[375160177,1753558249506,-712.3,0.00023834,2]
[375160178,1753558249515,-347.81547806,0.000239,2]
[375160179,1753558249525,-587.0,0.00023905,2]
[375160180,1753558249534,-168.0,0.00023985,2]
[375160181,1753558249543,-403.23622689,0.00024,2]
[375160182,1753558249553,-160.0,0.00024,7]
[375160183,1753558249562,-500.0,0.00024,2]
[375160184,1753558249571,-1430.83,0.00024004,2]
[375160185,1753558249581,-2427.82,0.00024004,2]
[375160186,1753558249590,-986.59,0.00024005,2]
[375160187,1753558249600,-934.6,0.00024005,2]
[375160188,1753558249609,-460.0,0.00024005,2]
[375160189,1753558249618,-460.0,0.00024006,2]
[375160190,1753558249628,-1609.99,0.00024006,2]
[375160191,1753558249638,-460.0,0.00024006,2]
[375160192,1753558249648,-2227.49,0.00024006,2]
[375160193,1753558249659,-1044.8,0.00024006,2]
[375160194,1753558249668,-460.0,0.00024006,2]
[375160195,1753558249677,-309.18,0.00024006,2]
[375160196,1753558249687,-460.0,0.00024006,2]
[375160197,1753558249697,-1586.95,0.00024006,2]
[375160198,1753558249707,-605.95,0.00024006,2]
[375160199,1753558249716,-676.8,0.00024007,2]
[375160200,1753558249730,-164.81180196,0.00024027,2]
[375160201,1753558249740,-500.0,0.00024068,2]
[375160202,1753558249752,-1000.0,0.00024068,2]
[375160203,1753558249762,-1500.0,0.00024068,2]
[375160204,1753558249772,-1500.0,0.00024068,2]
[375160205,1753558249781,-350.0,0.00024068,2]
[375160206,1753558249791,-168.0,0.00024093,2]
[375160207,1753558249800,-2370.34,0.00024105,2]
[375160208,1753558249809,-1234.43,0.00024107,2]
[375160209,1753558249819,-864.47,0.00024108,2]
[375160210,1753558249828,-712.3,0.00024108,2]
[375160211,1753558249838,-500.0,0.00024116,2]
[375160212,1753558249847,-1048.79965488,0.00024123,2]
[375160213,1753558249856,-168.0,0.00024125,2]
[375160214,1753558249867,-159.0,0.00024164,7]
[375160215,1753558249877,-560.0,0.00024192,2]
[375160216,1753558249887,-24427.15,0.000242,2]
[375160217,1753558249896,-241.48,0.00024264,2]
[375160218,1753558249906,-164.81180196,0.00024274,2]
[375160219,1753558249915,-1430.83,0.00024278,2]
[375160220,1753558249927,-2427.82,0.00024278,2]
[375160221,1753558249936,-986.59,0.00024279,2]
[375160222,1753558249946,-934.6,0.00024279,2]
[375160223,1753558249955,-460.0,0.00024279,2]
[375160224,1753558249966,-337.8,0.0002428,2]
[375160225,1753558249976,-1609.99,0.0002428,2]
[375160226,1753558249985,-460.0,0.0002428,2]
[375160227,1753558249994,-2227.49,0.0002428,2]
[375160228,1753558250003,-1044.8,0.0002428,2]
[375160229,1753558250013,-460.0,0.0002428,2]
[375160230,1753558250022,-460.0,0.0002428,2]
[375160231,1753558250031,-1586.95,0.0002428,2]
[375160232,1753558250041,-605.95,0.0002428,2]
[375160233,1753558250055,-676.8,0.00024281,2]
[375160234,1753558250064,-1757.42,0.000243,7]
[375160235,1753558250074,-3369.67,0.000243,7]
[375160236,1753558250084,-4235.0,0.00024302,2]
[375160237,1753558250093,-2370.34,0.00024379,2]
[375160238,1753558250103,-1234.43,0.00024381,2]
[375160239,1753558250113,-864.47,0.00024382,2]
[375160240,1753558250123,-712.3,0.00024382,2]
[375160241,1753558250132,-156.418633,0.00024386,2]
[375160242,1753558250142,-168.0,0.000244,2]
[375160243,1753558250152,-168.0,0.00024459,2]
[375160244,1753558250161,-164.81180196,0.00024521,2]
[375160245,1753558250257,-1430.83,0.00024552,2]
[375160246,1753558250267,-2427.82,0.00024552,2]
[375160247,1753558250276,-986.59,0.00024553,2]
[375160248,1753558250286,-934.6,0.00024553,2]
[375160249,1753558250297,-460.0,0.00024553,2]
[375160250,1753558250307,-1609.99,0.00024554,2]
[375160251,1753558250317,-460.0,0.00024554,2]
[375160252,1753558250326,-2227.49,0.00024554,2]
[375160253,1753558250336,-1044.8,0.00024554,2]
[375160254,1753558250345,-460.0,0.00024554,2]
[375160255,1753558250355,-460.0,0.00024554,2]
[375160256,1753558250365,-1586.95,0.00024554,2]
[375160257,1753558250374,-605.95,0.00024554,2]
[375160258,1753558250384,-676.8,0.00024555,2]
[375160259,1753558250393,-604.6377228,0.00024576,2]
[375160260,1753558250403,-168.0,0.00024586,2]
[375160261,1753558250412,-4235.0,0.00024601,2]
[375160262,1753558250422,-1404.74566212,0.00024616,2]
[375160263,1753558250431,-1000.0,0.00024616,2]
[375160264,1753558250441,-450.29582516,0.00024616,2]
[375160265,1753558250450,-168.0,0.0002463,2]
[375160266,1753558250460,-2370.34,0.00024653,2]
[375160267,1753558250469,-1234.43,0.00024655,2]
[375160268,1753558250478,-864.47,0.00024656,2]
[375160269,1753558250488,-712.3,0.00024656,2]
[375160270,1753558250497,-151.0,0.00024658,7]
[375160271,1753558250507,-151.0,0.00024658,7]
[375160272,1753558250516,-152.094587,0.00024658,7]
[375160273,1753558250525,-500.0,0.00024658,2]
[375160274,1753558250535,-168.0,0.00024681,2]
[375160275,1753558250544,-156.418633,0.000247,5]
[375160276,1753558250554,-403.23622689,0.000247,2]
[375160277,1753558250563,-241.48,0.00024717,2]
[375160278,1753558250572,-240.0,0.0002474,2]
[375160279,1753558250582,-164.81180196,0.00024767,2]
[375160280,1753558250591,-65017.1225169,0.000248,5]
[375160281,1753558250601,-3897.76003173,0.000248,2]
[375160282,1753558250610,-150.0,0.000248,5]
[375160283,1753558250619,-151.0,0.000248,7]
[375160284,1753558250629,-216.761087,0.000248,7]
[375160285,1753558250638,-216.761087,0.000248,7]
[375160286,1753558250649,-23373.9337119,0.000248,2]
[375160287,1753558250659,-1799.85468752,0.000248,7]
[375160288,1753558250669,-5033.69654659,0.00024802,2]
[375160289,1753558250678,-156.418633,0.00024812,3]
[375160290,1753558250687,-1430.83,0.00024826,2]
[375160291,1753558250697,-2427.82,0.00024826,2]
[375160292,1753558250707,-986.59,0.00024827,2]
[375160293,1753558250716,-934.6,0.00024827,2]
[375160294,1753558250725,-460.0,0.00024827,2]
[375160295,1753558250735,-1609.99,0.00024828,2]
[375160296,1753558250744,-460.0,0.00024828,2]
[375160297,1753558250753,-2227.49,0.00024828,2]